fUST/lending_fUST_20250124
["ID","MTS","AMOUNT","RATE_DAILY","PERIOD"]
[350181711,1737675051385,-500.0,0.00019452,3]
[350181712,1737675051394,-500.0,0.00019452,3]
[350181713,1737675051403,-500.0,0.00019452,3]
[350181714,1737675051413,-500.00000001,0.00019452,3]
[350181715,1737675051423,-500.0,0.00019452,3]
[350181716,1737675051432,-500.0,0.00019452,3]
[350181717,1737675051442,-500.0,0.00019452,3]
[350181718,1737675051451,-500.0,0.00019452,3]
[350181719,1737675051461,-500.0,0.00019452,3]
[350181720,1737675051471,-500.0,0.00019452,3]
[350181721,1737675051480,-500.0,0.00019452,3]
[350181722,1737675051489,-500.0,0.00019452,3]
[350181723,1737675051498,-363.49508087,0.00019452,3]
[350181724,1737675051508,-502.82979385,0.00019452,3]
[350181725,1737675051519,-500.0,0.00019452,3]
[350181726,1737675051528,-500.0,0.00019452,3]
[350181727,1737675051539,-500.0,0.00019452,3]
[350181728,1737675051548,-500.0,0.00019452,3]
[350181729,1737675051558,-500.0,0.00019452,3]
[350181730,1737675051567,-500.0,0.00019452,3]
[350181731,1737675051577,-394.34008367,0.00019452,3]
[350181732,1737675051586,-500.0,0.00019452,3]
[350181733,1737675051596,-500.0,0.00019452,3]
[350181734,1737675051605,-500.0,0.00019452,3]
[350181735,1737675051614,-500.0,0.00019452,3]
[350181736,1737675051623,-500.0,0.00019452,3]
[350181737,1737675051635,-500.0,0.00019452,3]
[350181738,1737675051644,-527.09,0.00019452,3]
[350181739,1737675051653,-500.0,0.00019452,3]
[350181740,1737675051663,-510.32673163,0.00019452,3]
[350181741,1737675051672,-500.0,0.00019452,3]
[350181742,1737675051681,-500.0,0.00019452,3]
[350181743,1737675051691,-502.98263348,0.00019452,3]
[350181744,1737675051701,-500.0,0.00019452,3]
[350181745,1737675051710,-500.0,0.00019452,3]
[350181746,1737675051720,-500.0,0.00019452,3]
[350181747,1737675051729,-500.0,0.00019452,3]
[350181748,1737675051739,-500.0,0.00019452,3]
[350181749,1737675051748,-500.0,0.00019452,3]
[350181750,1737675051757,-500.0,0.00019452,3]
[350181751,1737675051766,-500.0,0.00019452,3]
[350181752,1737675051775,-500.0,0.00019452,3]
[350181753,1737675051785,-500.0,0.00019452,3]
[350181754,1737675051794,-500.0,0.00019452,3]
[350181755,1737675051803,-553.88,0.00019452,3]
[350181756,1737675051812,-500.0,0.00019452,3]
[350181757,1737675051823,-500.0,0.00019452,3]
[350181758,1737675051832,-500.0,0.00019452,3]
[350181759,1737675051841,-639.96,0.00019452,3]
[350181760,1737675051851,-500.0,0.00019452,3]
[350181761,1737675051860,-500.0,0.00019452,3]
[350181762,1737675051869,-500.0,0.00019452,3]
[350181763,1737675051882,-500.0,0.00019452,3]
[350181764,1737675051891,-500.0,0.00019452,3]
[350181765,1737675051900,-500.0,0.00019452,3]
[350181766,1737675051910,-500.0,0.00019452,3]
[350181767,1737675051919,-500.0,0.00019452,3]
[350181768,1737675051929,-500.0,0.00019452,3]
[350181769,1737675051939,-500.0,0.00019452,3]
[350181770,1737675051949,-500.0,0.00019452,3]
[350181771,1737675051958,-500.0,0.00019452,3]
[350181772,1737675051968,-500.0,0.00019452,3]
[350181773,1737675051977,-500.0,0.00019452,3]
[350181774,1737675051986,-500.0,0.00019452,3]
[350181775,1737675051996,-500.0,0.00019452,3]
[350181776,1737675052005,-500.0,0.00019452,3]
[350181777,1737675052014,-500.0,0.00019452,3]
[350181778,1737675052023,-500.0,0.00019452,3]
[350181779,1737675052032,-500.0,0.00019452,3]
[350181780,1737675052042,-500.0,0.00019452,3]
[350181781,1737675052051,-500.0,0.00019452,3]
[350181782,1737675052061,-500.0,0.00019452,3]
[350181783,1737675052070,-500.0,0.00019452,3]
[350181784,1737675052079,-500.0,0.00019452,3]
[350181785,1737675052089,-500.0,0.00019452,3]
[350181786,1737675052098,-500.0,0.00019452,3]
[350181787,1737675052107,-500.0,0.00019452,3]
[350181788,1737675052116,-500.0,0.00019452,3]
[350181789,1737675052130,-500.0,0.00019452,3]
[350181790,1737675052140,-500.0,0.00019452,3]
[350181791,1737675052150,-500.0,0.00019452,3]
[350181792,1737675052159,-500.0,0.00019452,3]
[350181793,1737675052168,-500.0,0.00019452,3]
[350181794,1737675052178,-500.0,0.00019452,3]
[350181795,1737675052187,-500.0,0.00019452,3]
[350181796,1737675052202,-500.0,0.00019452,3]
[350181797,1737675052211,-500.0,0.00019452,3]
[350181798,1737675052220,-500.0,0.00019452,3]
[350181799,1737675052230,-500.0,0.00019452,3]
[350181800,1737675052241,-500.0,0.00019452,3]
[350181801,1737675052251,-500.0,0.00019452,3]
[350181802,1737675052260,-500.0,0.00019452,3]
[350181803,1737675052269,-500.0,0.00019452,3]
[350181804,1737675052279,-500.0,0.00019452,3]
[350181805,1737675052289,-500.0,0.00019452,3]
[350181806,1737675052298,-500.0,0.00019452,3]
[350181807,1737675052307,-500.0,0.00019452,3]
[350181808,1737675052316,-500.0,0.00019452,3]
[350181809,1737675052326,-500.0,0.00019452,3]
[350181810,1737675052335,-500.0,0.00019452,3]
[350181811,1737675052345,-500.0,0.00019452,3]
[350181812,1737675052354,-500.0,0.00019452,3]
[350181813,1737675052439,-500.0,0.00019452,3]
[350181814,1737675052450,-500.0,0.00019452,3]
[350181815,1737675052460,-500.0,0.00019452,3]
[350181816,1737675052470,-500.0,0.00019452,3]
[350181817,1737675052479,-500.0,0.00019452,3]
[350181818,1737675052489,-500.0,0.00019452,3]
[350181819,1737675052499,-500.0,0.00019452,3]
[350181820,1737675052508,-500.0,0.00019452,3]
[350181821,1737675052518,-500.0,0.00019452,3]
[350181822,1737675052527,-500.0,0.00019452,3]
[350181823,1737675052537,-500.0,0.00019452,3]
[350181824,1737675052547,-500.0,0.00019452,3]
[350181825,1737675052556,-240.72,0.00019452,3]
[350181826,1737675052566,-500.0,0.00019452,3]
[350181827,1737675052575,-504.5,0.00019452,3]
[350181828,1737675052585,-633.39022677,0.00019452,3]
[350181829,1737675052594,-500.0,0.00019452,3]
[350181830,1737675052604,-500.0,0.00019452,3]
[350181831,1737675052613,-500.0,0.00019452,3]
[350181832,1737675052623,-502.71498313,0.00019452,3]
[350181833,1737675052635,-500.0,0.00019452,3]
[350181834,1737675052644,-500.0,0.00019452,3]
[350181835,1737675052654,-500.0,0.00019452,3]
[350181836,1737675052665,-500.0,0.00019452,3]
[350181837,1737675052674,-500.0,0.00019452,3]
[350181838,1737675052684,-500.0,0.00019452,3]
[350181839,1737675052693,-500.0,0.00019452,3]
[350181840,1737675052703,-500.0,0.00019452,3]
[350181841,1737675052712,-500.0,0.00019452,3]
[350181842,1737675052721,-3182.58,0.00019452,3]
[350181843,1737675052731,-500.0,0.00019452,3]
[350181844,1737675052741,-1377.54,0.00019452,3]
[350181845,1737675052750,-500.0,0.00019452,3]
[350181846,1737675052760,-207.7,0.00019452,3]
[350181847,1737675052769,-546.72,0.00019452,3]
[350181848,1737675052779,-500.0,0.00019452,3]
[350181849,1737675052789,-500.0,0.00019452,3]
[350181850,1737675052799,-500.0,0.00019452,3]
[350181851,1737675052809,-500.0,0.00019452,3]
[350181852,1737675052818,-2815.23,0.00019452,3]
[350181853,1737675052828,-500.0,0.00019452,3]
[350181854,1737675052838,-500.0,0.00019452,3]
[350181855,1737675052847,-597.78,0.00019452,3]
[350181856,1737675052858,-500.0,0.00019452,3]
[350181857,1737675052867,-1554.3,0.00019452,3]
[350181858,1737675052878,-500.0,0.00019452,3]
[350181859,1737675052888,-500.0,0.00019452,3]
[350181860,1737675052898,-500.0,0.00019452,3]
[350181861,1737675052907,-500.0,0.00019452,3]
[350181862,1737675052917,-500.0,0.00019452,3]
[350181863,1737675052926,-500.0,0.00019452,3]
[350181864,1737675052936,-500.0,0.00019452,3]
[350181865,1737675052946,-353.98,0.00019452,3]
[350181866,1737675052955,-500.0,0.00019452,3]
[350181867,1737675052965,-500.0,0.00019452,3]
[350181868,1737675052975,-500.0,0.00019452,3]
[350181869,1737675052984,-500.0,0.00019452,3]
[350181870,1737675052994,-842.64,0.00019452,3]
[350181871,1737675053003,-859.68,0.00019452,3]
[350181872,1737675053012,-500.0,0.00019452,3]
[350181873,1737675053022,-500.0,0.00019452,3]
[350181874,1737675053031,-500.0,0.00019452,3]
[350181875,1737675053042,-500.0,0.00019452,3]
[350181876,1737675053051,-608.09,0.00019452,3]
[350181877,1737675053061,-500.0,0.00019452,3]
[350181878,1737675053071,-500.0,0.00019452,3]
[350181879,1737675053080,-500.0,0.00019452,3]
[350181880,1737675053089,-565.90550694,0.00019452,3]
[350181881,1737675053099,-500.0,0.00019452,3]
[350181882,1737675053108,-500.0,0.00019452,3]
[350181883,1737675053118,-500.0,0.00019452,3]
[350181884,1737675053129,-500.0,0.00019452,3]
[350181885,1737675053139,-500.0,0.00019452,3]
[350181886,1737675053148,-500.0,0.00019452,3]
[350181887,1737675053158,-500.0,0.00019452,3]
[350181888,1737675053167,-572.3105872,0.00019452,3]
[350181889,1737675053177,-500.0,0.00019452,3]
[350181890,1737675053186,-500.0,0.00019452,3]
[350181891,1737675053197,-10710.46,0.00019452,3]
[350181892,1737675053210,-500.0,0.00019452,3]
[350181893,1737675053220,-500.0,0.00019452,3]
[350181894,1737675053229,-500.0,0.00019452,3]
[350181895,1737675053239,-323.68,0.00019452,3]
[350181896,1737675053250,-500.0,0.00019452,3]
[350181897,1737675053260,-583.73,0.00019452,3]
[350181898,1737675053269,-500.0,0.00019452,3]
[350181899,1737675053280,-508.62,0.00019452,3]
[350181900,1737675053290,-500.0,0.00019452,3]
[350181901,1737675053300,-500.0,0.00019452,3]
[350181902,1737675053309,-2974.93,0.00019452,3]
[350181903,1737675053319,-500.0,0.00019452,3]
[350181904,1737675053328,-500.0,0.00019452,3]
[350181905,1737675053337,-683.61,0.00019452,3]
[350181906,1737675053346,-500.0,0.00019452,3]
[350181907,1737675053355,-500.0,0.00019452,3]
[350181908,1737675053364,-500.0,0.00019452,3]
[350181909,1737675053374,-500.0,0.00019452,3]
[350181910,1737675053386,-1130.92,0.00019452,3]
[350181911,1737675053395,-500.0,0.00019452,3]
[350181912,1737675053404,-500.0,0.00019452,3]
[350181913,1737675053414,-500.0,0.00019452,3]
[350181914,1737675053423,-500.0,0.00019452,3]
[350181915,1737675053433,-2259.58,0.00019452,3]
[350181916,1737675053442,-500.0,0.00019452,3]
[350181917,1737675053452,-500.0,0.00019452,3]
[350181918,1737675053461,-500.0,0.00019452,3]
[350181919,1737675053470,-500.0,0.00019452,3]
[350181920,1737675053480,-500.0,0.00019452,3]
[350181921,1737675053489,-500.0,0.00019452,3]
[350181922,1737675053500,-500.0,0.00019452,3]
[350181923,1737675053510,-870.34,0.00019452,3]
[350181924,1737675053520,-500.0,0.00019452,3]
[350181925,1737675053530,-500.0,0.00019589,3]
[350181926,1737675053540,-500.0,0.00019589,3]
[350181927,1737675053550,-500.0,0.00019589,3]
[350181928,1737675053559,-198.63,0.00019589,3]
[350181929,1737675053569,-500.0,0.00019589,3]
[350181930,1737675053579,-500.0,0.00019589,3]
[350181931,1737675053589,-500.0,0.00019589,3]
[350181932,1737675053599,-500.0,0.00019589,3]
[350181933,1737675053609,-500.0,0.00019589,3]
[350181934,1737675053619,-500.0,0.00019589,3]
[350181935,1737675053630,-323.52,0.00019589,3]
[350181936,1737675053640,-500.0,0.00019589,3]
[350181937,1737675053649,-500.0,0.00019589,3]
[350181938,1737675053659,-500.0,0.00019589,3]
[350181939,1737675053669,-500.0,0.00019589,3]
[350181940,1737675053679,-212.67,0.00019589,3]
[350181941,1737675053688,-500.0,0.00019589,3]
[350181942,1737675053698,-500.0,0.00019589,3]
[350181943,1737675053708,-500.0,0.00019589,3]
[350181944,1737675053718,-500.0,0.00019589,3]
[350181945,1737675053727,-500.0,0.00019589,3]
[350181946,1737675053737,-500.0,0.00019589,3]
[350181947,1737675053747,-643.77032535,0.00019589,3]
[350181948,1737675053756,-500.0,0.00019589,3]
[350181949,1737675053766,-500.0,0.00019589,3]
[350181950,1737675053776,-500.0,0.00019589,3]
[350181951,1737675053785,-500.0,0.00019589,3]
[350181952,1737675053795,-504.77894629,0.00019589,3]
[350181953,1737675053804,-500.0,0.00019589,3]
[350181954,1737675053814,-500.0,0.00019589,3]
[350181955,1737675053824,-500.0,0.00019589,3]
[350181956,1737675053834,-500.0,0.00019589,3]
[350181957,1737675053844,-500.0,0.00019589,3]
[350181958,1737675053853,-500.0,0.00019589,3]
[350181959,1737675053863,-500.0,0.00019589,3]
[350181960,1737675053873,-500.0,0.00019589,3]
[350181961,1737675053884,-500.0,0.00019589,3]
[350181962,1737675053894,-500.0,0.00019589,3]
[350181963,1737675053971,-511.84039305,0.00019589,3]
[350181964,1737675053981,-500.0,0.00019589,3]
[350181965,1737675053990,-500.0,0.00019589,3]
[350181966,1737675053999,-356.25596257,0.00019589,3]
[350181967,1737675054009,-504.5,0.00019589,3]
[350181968,1737675054018,-500.0,0.00019589,3]
[350181969,1737675054027,-500.0,0.00019589,3]
[350181970,1737675054036,-500.0,0.00019589,3]
[350181971,1737675054045,-500.0,0.00019589,3]
[350181972,1737675054054,-500.0,0.00019589,3]
[350181973,1737675054063,-500.0,0.00019589,3]
[350181974,1737675054072,-500.0,0.00019589,3]
[350181975,1737675054081,-500.0,0.00019589,3]
[350181976,1737675054090,-500.0,0.00019589,3]
[350181977,1737675054099,-500.0,0.00019589,3]
[350181978,1737675054108,-500.0,0.00019589,3]
[350181979,1737675054118,-3182.58,0.00019589,3]
[350181980,1737675054128,-500.0,0.00019589,3]
[350181981,1737675054137,-1377.54,0.00019589,3]
[350181982,1737675054146,-500.0,0.00019589,3]
[350181983,1737675054155,-216.98375605,0.00019589,3]
[350181984,1737675054164,-640.95,0.00019589,3]
[350181985,1737675054173,-500.0,0.00019589,3]
[350181986,1737675054182,-2815.23,0.00019589,3]
[350181987,1737675054192,-500.0,0.00019589,3]
[350181988,1737675054205,-1554.3,0.00019589,3]
[350181989,1737675054214,-500.0,0.00019589,3]
[350181990,1737675054224,-500.0,0.00019589,3]
[350181991,1737675054233,-503.66451759,0.00019589,3]
[350181992,1737675054243,-500.0,0.00019589,3]
[350181993,1737675054253,-284.31,0.00019589,3]
[350181994,1737675054263,-500.0,0.00019589,3]
[350181995,1737675054272,-842.64,0.00019589,3]
[350181996,1737675054281,-859.68,0.00019589,3]
[350181997,1737675054291,-500.0,0.00019589,3]
[350181998,1737675054300,-500.0,0.00019589,3]
[350181999,1737675054310,-500.0,0.00019589,3]
[350182000,1737675054319,-608.09,0.00019589,3]
[350182001,1737675054328,-500.0,0.00019589,3]
[350182002,1737675054338,-500.0,0.00019589,3]
[350182003,1737675054348,-289.34,0.00019589,3]
[350182004,1737675054357,-500.0,0.00019589,3]
[350182005,1737675054366,-500.0,0.00019589,3]
[350182006,1737675054376,-500.0,0.00019589,3]
[350182007,1737675054385,-500.0,0.00019589,3]
[350182008,1737675054394,-500.0,0.00019589,3]
[350182009,1737675054403,-500.0,0.00019589,3]
[350182010,1737675054412,-10710.46,0.00019589,3]
[350182011,1737675054422,-500.0,0.00019589,3]
[350182012,1737675054431,-500.0,0.00019589,3]
[350182013,1737675054440,-500.0,0.00019589,3]
[350182014,1737675054450,-500.0,0.00019589,3]
[350182015,1737675054459,-583.73,0.00019589,3]
[350182016,1737675054469,-508.62,0.00019589,3]
[350182017,1737675054479,-500.0,0.00019589,3]
[350182018,1737675054488,-500.0,0.00019589,3]
[350182019,1737675054498,-2974.93,0.00019589,3]
[350182020,1737675054507,-500.0,0.00019589,3]
[350182021,1737675054517,-500.0,0.00019589,3]
[350182022,1737675054526,-683.61,0.00019589,3]
[350182023,1737675054536,-500.0,0.00019589,3]
[350182024,1737675054546,-500.0,0.00019589,3]
[350182025,1737675054555,-500.0,0.00019589,3]
[350182026,1737675054565,-1130.92,0.00019589,3]
[350182027,1737675054574,-500.0,0.00019589,3]
[350182028,1737675054583,-500.0,0.00019589,3]
[350182029,1737675054592,-2259.58,0.00019589,3]
[350182030,1737675054603,-500.0,0.00019589,3]
[350182031,1737675054612,-224.32,0.00019589,3]
[350182032,1737675054621,-500.0,0.00019589,3]
[350182033,1737675054631,-500.0,0.00019589,3]
[350182034,1737675054641,-500.0,0.00019589,3]
[350182035,1737675054650,-870.34,0.00019589,3]
[350182036,1737675054659,-203.19,0.00019589,3]
[350182037,1737675054670,-10855.37,0.000196,2]
[350182038,1737675054680,-6806.23,0.000196,2]
[350182039,1737675054689,-418.765,0.00019653,2]
[350182040,1737675054699,-500.0,0.00019726,3]
[350182041,1737675054708,-500.0,0.00019726,3]
[350182042,1737675054718,-500.0,0.00019726,3]
[350182043,1737675054727,-500.0,0.00019726,3]
[350182044,1737675054737,-500.0,0.00019726,3]
[350182045,1737675054746,-254.2,0.00019726,3]
[350182046,1737675054756,-359.29,0.00019726,3]
[350182047,1737675054766,-434.38,0.00019726,3]
[350182048,1737675054775,-331.39,0.00019726,3]
[350182049,1737675054784,-248.71,0.00019726,3]
[350182050,1737675054793,-500.0,0.00019726,3]
[350182051,1737675054803,-500.0,0.00019726,3]
[350182052,1737675054812,-500.0,0.00019726,3]
[350182053,1737675054821,-500.0,0.00019726,3]
[350182054,1737675054831,-500.0,0.00019726,3]
[350182055,1737675054840,-282.05,0.00019726,3]
[350182056,1737675054849,-245.35,0.00019726,3]
[350182057,1737675054859,-500.0,0.00019726,3]
[350182058,1737675054869,-500.0,0.00019726,3]
[350182059,1737675054880,-502.14400691,0.00019726,3]
[350182060,1737675054889,-332.07376912,0.00019726,3]
[350182061,1737675054898,-500.0,0.00019726,3]
[350182062,1737675054907,-500.0,0.00019726,3]
[350182063,1737675054916,-500.0,0.00019726,3]
[350182064,1737675054926,-224.14423402,0.00019726,3]
[350182065,1737675054935,-502.33923035,0.00019726,3]
[350182066,1737675054945,-500.0,0.00019726,3]
[350182067,1737675054954,-500.0,0.00019726,3]
[350182068,1737675054964,-500.0,0.00019726,3]
[350182069,1737675054973,-462.65437725,0.00019726,3]
[350182070,1737675054982,-425.06445523,0.00019726,3]
[350182071,1737675054991,-500.0,0.00019726,3]
[350182072,1737675055000,-504.5,0.00019726,3]
[350182073,1737675055010,-500.0,0.00019726,3]
[350182074,1737675055020,-500.0,0.00019726,3]
[350182075,1737675055029,-500.0,0.00019726,3]
[350182076,1737675055038,-500.0,0.00019726,3]
[350182077,1737675055048,-500.0,0.00019726,3]
[350182078,1737675055057,-500.0,0.00019726,3]
[350182079,1737675055066,-500.0,0.00019726,3]
[350182080,1737675055076,-500.0,0.00019726,3]
[350182081,1737675055085,-500.0,0.00019726,3]
[350182082,1737675055094,-628.86,0.00019726,3]
[350182083,1737675055103,-500.0,0.00019726,3]
[350182084,1737675055113,-3182.58,0.00019726,3]
[350182085,1737675055122,-620.56,0.00019726,3]
[350182086,1737675055132,-1377.54,0.00019726,3]
[350182087,1737675055142,-500.0,0.00019726,3]
[350182088,1737675055151,-500.0,0.00019726,3]
[350182089,1737675055160,-2815.23,0.00019726,3]
[350182090,1737675055169,-500.0,0.00019726,3]
[350182091,1737675055178,-1554.3,0.00019726,3]
[350182092,1737675055187,-500.0,0.00019726,3]
[350182093,1737675055199,-500.0,0.00019726,3]
[350182094,1737675055211,-500.0,0.00019726,3]
[350182095,1737675055220,-842.64,0.00019726,3]
[350182096,1737675055230,-859.68,0.00019726,3]
[350182097,1737675055239,-500.0,0.00019726,3]
[350182098,1737675055248,-500.0,0.00019726,3]
[350182099,1737675055258,-500.0,0.00019726,3]
[350182100,1737675055267,-608.09,0.00019726,3]
[350182101,1737675055334,-500.0,0.00019726,3]
[350182102,1737675055350,-500.0,0.00019726,3]
[350182103,1737675055359,-500.0,0.00019726,3]
[350182104,1737675055368,-500.0,0.00019726,3]
[350182105,1737675055379,-500.0,0.00019726,3]
[350182106,1737675055388,-440.11186847,0.00019726,3]
[350182107,1737675055397,-10710.46,0.00019726,3]
[350182108,1737675055406,-500.0,0.00019726,3]
[350182109,1737675055415,-500.0,0.00019726,3]
[350182110,1737675055424,-583.73,0.00019726,3]
[350182111,1737675055434,-508.62,0.00019726,3]
[350182112,1737675055443,-500.0,0.00019726,3]
[350182113,1737675055452,-500.0,0.00019726,3]
[350182114,1737675055462,-2974.93,0.00019726,3]
[350182115,1737675055471,-500.0,0.00019726,3]
[350182116,1737675055480,-500.0,0.00019726,3]
[350182117,1737675055490,-683.61,0.00019726,3]
[350182118,1737675055499,-500.0,0.00019726,3]
[350182119,1737675055510,-500.0,0.00019726,3]
[350182120,1737675055519,-1130.92,0.00019726,3]
[350182121,1737675055529,-2259.58,0.00019726,3]
[350182122,1737675055538,-500.0,0.00019726,3]
[350182123,1737675055547,-500.0,0.00019726,3]
[350182124,1737675055556,-500.0,0.00019726,3]
[350182125,1737675055566,-870.34,0.00019726,3]
[350182126,1737675055575,-500.0,0.00019863,3]
[350182127,1737675055584,-540.14,0.00019863,3]
[350182128,1737675055594,-590.48,0.00019863,3]
[350182129,1737675055603,-500.0,0.00019863,3]
[350182130,1737675055613,-500.0,0.00019863,3]
[350182131,1737675055622,-345.47,0.00019863,3]
[350182132,1737675055632,-500.0,0.00019863,3]
[350182133,1737675055641,-500.0,0.00019863,3]
[350182134,1737675055651,-500.0,0.00019863,3]
[350182135,1737675055661,-500.0,0.00019863,3]
[350182136,1737675055670,-500.0,0.00019863,3]
[350182137,1737675055681,-500.0,0.00019863,3]
[350182138,1737675055691,-500.0,0.00019863,3]
[350182139,1737675055700,-333.4582048,0.00019863,3]
[350182140,1737675055710,-502.69757913,0.00019863,3]
[350182141,1737675055719,-504.5,0.00019863,3]
[350182142,1737675055728,-265.05960498,0.00019863,3]
[350182143,1737675055737,-500.0,0.00019863,3]
[350182144,1737675055747,-500.0,0.00019863,3]
[350182145,1737675055756,-500.0,0.00019863,3]
[350182146,1737675055766,-510.53134449,0.00019863,3]
[350182147,1737675055775,-500.0,0.00019863,3]
[350182148,1737675055784,-500.0,0.00019863,3]
[350182149,1737675055794,-500.0,0.00019863,3]
[350182150,1737675055803,-500.0,0.00019863,3]
[350182151,1737675055812,-500.0,0.00019863,3]
[350182152,1737675055822,-3182.58,0.00019863,3]
[350182153,1737675055832,-1377.54,0.00019863,3]
[350182154,1737675055841,-2815.23,0.00019863,3]
[350182155,1737675055850,-500.0,0.00019863,3]
[350182156,1737675055859,-1554.3,0.00019863,3]
[350182157,1737675055869,-842.64,0.00019863,3]
[350182158,1737675055879,-859.68,0.00019863,3]
[350182159,1737675055888,-500.0,0.00019863,3]
[350182160,1737675055897,-608.09,0.00019863,3]
[350182161,1737675055906,-389.24,0.00019863,3]
[350182162,1737675055915,-500.0,0.00019863,3]
[350182163,1737675055926,-500.0,0.00019863,3]
[350182164,1737675055936,-302.31139438,0.00019863,3]
[350182165,1737675055947,-10710.46,0.00019863,3]
[350182166,1737675055956,-500.0,0.00019863,3]
[350182167,1737675055965,-500.0,0.00019863,3]
[350182168,1737675055974,-583.73,0.00019863,3]
[350182169,1737675055985,-500.0,0.00019863,3]
[350182170,1737675055995,-508.62,0.00019863,3]
[350182171,1737675056004,-500.0,0.00019863,3]
[350182172,1737675056013,-2974.93,0.00019863,3]
[350182173,1737675056023,-500.0,0.00019863,3]
[350182174,1737675056032,-500.0,0.00019863,3]
[350182175,1737675056041,-683.61,0.00019863,3]
[350182176,1737675056051,-500.0,0.00019863,3]
[350182177,1737675056060,-500.0,0.00019863,3]
[350182178,1737675056069,-1130.92,0.00019863,3]
[350182179,1737675056079,-500.0,0.00019863,3]
[350182180,1737675056088,-2259.58,0.00019863,3]
[350182181,1737675056098,-500.0,0.00019863,3]
[350182182,1737675056107,-500.0,0.00019863,3]
[350182183,1737675056116,-870.34,0.00019863,3]
[350182184,1737675056126,-378.2860227,0.00019863,2]
[350182185,1737675056135,-95451.99026676,0.00019888,7]
[350182186,1737675056235,-6741.13307684,0.00019888,7]
[350182187,1737675056246,-1084.41099492,0.00019888,7]
[350182189,1737675119007,211.427981,0.00013973,2]
[350182193,1737676037815,200.856581,0.00013973,2]
[350182527,1737676238438,-167.659085,0.00017454,2]
[350182528,1737676238448,-167.659085,0.00017808,2]
[350182529,1737676238457,-154.9690062,0.00018524,2]
[350182530,1737676238467,-893.71241923,0.000189,2]
[350182531,1737676238476,-302.9394212,0.00019,2]
[350182533,1737676238489,-200.95,0.00019168,2]
[350182535,1737676238500,-229.31098337,0.00019177,2]
[350182537,1737676238512,-317.1334414,0.00019177,2]
[350182540,1737676238523,-377.54850161,0.00019177,2]
[350182542,1737676238532,-300.0,0.00019177,2]
[350182544,1737676238541,-299.85595153,0.00019177,2]
[350182545,1737676238551,-156.35361197,0.00019177,2]
[350182547,1737676238560,-385.74779881,0.00019178,2]
[350182549,1737676238569,-500.0,0.00019178,2]
[350182551,1737676238578,-552.07228922,0.00019178,2]
[350182553,1737676238589,-500.0,0.00019178,2]
[350182555,1737676238599,-500.0,0.00019178,2]
[350182557,1737676238608,-573.53,0.00019178,2]
[350182559,1737676238619,-510.52460762,0.00019178,2]
[350182561,1737676238628,-500.0,0.00019178,2]
[350182563,1737676238638,-500.0,0.00019178,2]